Cogmind - Beta 15 @@@ ROGUE MODE // 2025.06.20 @ 03:19:45 Player: Mogwok Wargfriend Result: Destroyed by Autobeam Turret with Autobeam Performance ------------- Evolutions (0) 0 Regions Visited (2) 400 Robots Destroyed (25) 125 Value Destroyed (565) 565 Prototype IDs (0) 0 Alien Tech Used (0) 0 Bonus (0) 0 TOTAL SCORE: 1090 Bonus ------- None Cogmind --------- Core Integrity 0/250 Matter 281/300 Energy 246/250 System Corruption 0% Temperature Cool (8) Movement Treading (160) Location -10/Subcaves Parts ------- > --- POWER (1) -------- Ion Engine > --- PROPULSION (2) --- Light Treads Light Treads > --- UTILITY (2) ------ Scrap Shield > --- WEAPON (2) ------- Assault Rifle Light Assault Rifle > --- INVENTORY (5) ---- Subdweller Power Source Light Treads Subdweller Monowheel Disposable Heat Sink Scrap Shield Fragment (39) Peak State ------------ > --- POWER ------------ Ion Engine > --- PROPULSION ------- Light Treads Light Treads > --- UTILITY ---------- Medium Storage Unit Subdweller Optics > --- WEAPON ----------- Medium Laser Grenade Launcher > --- INVENTORY -------- Ion Engine Light Treads Light Treads Aluminum Leg Aluminum Leg Aluminum Leg Small Laser Assault Rifle Light Assault Rifle Mining Laser [Rating: 9] Favorites ----------- Power Ion Engine Engine Ion Engine Propulsion Light Treads Treads Light Treads Wheel Compact Wheel Utility Medium Storage Unit Device Heat Sink Storage Medium Storage Unit Protection Scrap Shield Weapon Medium Laser Energy Gun Medium Laser Ballistic Gun Light Assault Rifle Launcher Grenade Launcher Build | -11 -10 -10 ------- Run | Yrd Mat Sub Slots Evolved . | . . . Power . | . . . Propulsion . | . . . Utility . | . . . Weapon . | . . . Parts Attached 23 | 7 9 7 Power 4 | 1 2 1 Engine 4 | 1 2 1 Core . | . . . Reactor . | . . . Propulsion 8 | 2 4 2 Treads 4 | . 2 2 Leg . | . . . Wheel 4 | 2 2 . Hover . | . . . Flight . | . . . Utility 6 | 2 2 2 Device 3 | 1 1 1 Storage 2 | 1 1 . Processor . | . . . Hackware . | . . . Protection 1 | . . 1 Artifact . | . . . Weapon 5 | 2 1 2 Energy Gun 1 | 1 . . Energy Cannon . | . . . Ballistic Gun 3 | 1 1 1 Ballistic Cannon . | . . . Launcher 1 | . . 1 Special Weapon . | . . . Impact Weapon . | . . . Slashing Weapon . | . . . Piercing Weapon . | . . . Special Melee Weapon . | . . . Unidentified Prototypes . | . . . Parts Lost 7 | . 2 5 Power 2 | . 1 1 Propulsion 3 | . 1 2 Utility . | . . . Weapon 2 | . . 2 Highest Loss Streak 2 | . 1 2 To Critical Strikes . | . . . Average Backups 8 | 6 9 7 Power . | . . . Propulsion 4 | 4 5 3 Utility . | . . . Weapon 2 | 1 2 2 Tool/Special . | . . . Unused Backups 14 | 1 3 10 Power 1 | . . 1 Propulsion 8 | 1 1 6 Utility 1 | . . 1 Weapon 4 | . 2 2 Tool/Special . | . . . Average Slot Usage (%) 97 | . 99 96 Engine 13 | . 13 13 Treads 17 | . 4 27 Wheel 10 | . 23 . Device 12 | . 14 11 Storage 12 | . 14 11 Protection 1 | . . 2 Energy Gun 12 | . 14 11 Ballistic Gun 13 | . 14 12 Launcher 2 | . . 4 Peak Build Rating 9 | 7 8 9 Average Rating 7 | 4 7 8 On Entrance 5 | . 7 8 Naked Turns . | . . . Heaviest Build 26 | 12 19 26 Greatest Support 40 | 32 40 40 Greatest Overweight (x) 1 | 1 1 . Average Overweight (x) . | . . . Largest Inventory Capacity 10 | 8 10 10 Average Capacity 9 | 7 9 9 Most Carried 10 | 8 10 10 Average Carried 8 | 6 9 8 Final Capacity 10 | 8 10 5 Final Carried 10 | 8 10 5 Class Distribution -------------------- 100% | Mutant Dominant Class ---------------- Mutant | -10/Materials Mutant | -10/Subcaves Resources | -11 -10 -10 ----------- Run | Yrd Mat Sub Matter Collected 642 | 289 101 252 Remotely . | . . . Salvage Created 760 | 174 309 277 Parts 57 | 13 26 18 Haulers Intercepted 1 | . 1 . Recyclers Shooed 2 | . 2 . Parts Field Recycled . | . . . Retrieved Matter . | . . . Parts Self-Destructed 9 | . . 9 Prevented . | . . . Kills | -11 -10 -10 ------- Run | Yrd Mat Sub Combat Hostiles Destroyed 15 | . 7 8 Guns 14 | . 7 7 AOE 1 | . . 1 Classes Destroyed 8 | 2 5 1 Builder 1 | . 1 . Tunneler 4 | 4 . . Hauler 1 | . 1 . Recycler 1 | 1 . . Watcher 3 | . 3 . Swarmer 4 | . 4 . Grunt 5 | . 3 2 Subdweller 6 | . . 6 Best Kill Streak 5 | 5 3 2 Combat Bots Only 3 | . 3 2 Max Kills in Single Turn 1 | 1 1 1 Gunslinging . | . . . Exploded 1 | . . 1 Melee . | . . . Uniques/NPCs Destroyed . | . . . Combat | -11 -10 -10 -------- Run | Yrd Mat Sub Hostile Shots Fired 110 | . 36 74 Missed 29 | . 10 19 Hits 81 | . 26 55 Projectile 81 | . 26 55 Critical Strikes 1 | . . 1 Damage Taken 1384 | . 240 1144 Core 255 | . 54 201 Absorbed by Shields . | . . . Core Remaining (%) 100 | 100 . . Volleys Fired 111 | 19 52 40 Largest 2 | 2 2 2 Hottest 80 | 70 70 80 Shots Fired 214 | 36 103 75 Gun 209 | 36 103 70 Cannon . | . . . Launcher 5 | . . 5 Special . | . . . Kinetic 118 | 19 52 47 Thermal 91 | 17 51 23 Explosive 5 | . . 5 Electromagnetic . | . . . Robot Hit Streak 24 | 6 12 24 Robot Miss Streak 4 | 2 4 3 Penetration Max . | . . . Secondary Targets 1 | . . 1 Max Gunslinging Chain 1 | . . 1 Shots Hit Robots 141 | 24 55 62 Core Hits 53 | 7 24 22 Critical Kills . | . . . Critical Parts Destroyed 1 | . . 1 Critical Strikes 6 | 2 1 3 Burn 5 | 2 1 2 Destroy 1 | . . 1 Melee Attacks . | . . . Impact . | . . . Slashing . | . . . Piercing . | . . . Sneak Attacks . | . . . Combat Hostiles . | . . . Follow-up Attacks . | . . . Damage Inflicted 1776 | 261 605 910 Guns 1545 | 261 605 679 Cannons . | . . . Explosions 231 | . . 231 Melee . | . . . Ramming . | . . . Kinetic 769 | 86 240 443 Thermal 776 | 175 365 236 Explosive 231 | . . 231 Electromagnetic . | . . . Impact . | . . . Slashing . | . . . Piercing . | . . . Highest Corruption . | . . . Average Corruption . | . . . Corruption Purged . | . . . Corruption Blocked . | . . . Overload Shots . | . . . Overflow Damage . | . . . Projectiles . | . . . Explosions . | . . . Melee . | . . . Knockbacks . | . . . Impact . | . . . Kinetic . | . . . Secondary . | . . . Self-Inflicted Damage 14 | . . 14 Shots 1 | . . 1 Rammed . | . . . Targets Rammed . | . . . Kicked . | . . . Crushed . | . . . Highest Temperature 180 | 130 180 . Average Temperature 41 | 61 30 . Received Heat Transfer 336 | . 75 261 Siege Activations . | . . . Martial Activations . | . . . Shielding Activations . | . . . Robots Disrupted . | . . . Combat Hostiles . | . . . Robots Corrupted . | . . . Combat Hostiles . | . . . Parts Fried . | . . . Impact Corruptions . | . . . Robots Melted . | . . . Combat Hostiles . | . . . Parts Melted 2 | . . 2 Heat Transferred 2664 | 666 1147 851 Parts Sabotaged . | . . . Parts Stolen . | . . . Parts Stripped . | . . . Power Chain Reactions . | . . . Alert | -11 -10 -10 ------- Run | Yrd Mat Sub Maximum Alert Level . | . . . Low Security (%) 100 | 100 100 . Level 1 . | . . . Level 2 . | . . . Level 3 . | . . . Level 4 . | . . . Level 5 . | . . . High Security . | . . . Max Security . | . . . Peak Influence 107 | 10 107 . Initial . | . . . Average 28 | 1 33 . Influence Increases 351 | 25 276 50 Destroy 0b10 Robot/C 180 | . 140 40 Destroy 0b10 Robot/NC 50 | 25 25 . Destroy Leader 48 | . 38 10 Successful Hack 12 | . 12 . Destroy Structure 1 | . 1 . Lose Combat Pursuer 60 | . 60 . Influence Decreases 319 | 25 276 18 Time Decay 309 | 25 266 18 Lost Part 10 | . 10 . Squads Dispatched 1 | . 1 . Investigation . | . . . Extermination . | . . . Reinforcement 1 | . 1 . Assault . | . . . Garrison . | . . . Intercept . | . . . Searches Triggered . | . . . Construction Impeded . | . . . Haulers Reinforced . | . . . Active Scanning Responses . | . . . Cargo Convoy Interrupts . | . . . Stealth | -11 -10 -10 --------- Run | Yrd Mat Sub Distress Signals 1 | . 1 . Communications Jammed . | . . . Distress Signals . | . . . Times Spotted 25 | . 17 8 Peak Tracking Total 4 | . 4 2 Tactical Retreats 2 | . 2 . Traps | -11 -10 -10 ------- Run | Yrd Mat Sub Traps Triggered 3 | . . 3 Indirectly . | . . . Trap Hack Attempts . | . . . Triggered . | . . . Disarmed . | . . . Reprogrammed . | . . . Reused 1 | . . 1 Traps Extracted . | . . . Installed 3 | . . 3 Triggered . | . . . Most Traps Carried 1 | . . 1 Machines | -11 -10 -10 ---------- Run | Yrd Mat Sub Machines Disabled . | . . . Max in Single Turn . | . . . Machines Repaired . | . . . Machines Dismantled . | . . . Machines Sabotaged . | . . . Overloaded Fab Kills . | . . . Hacking | -11 -10 -10 --------- Run | Yrd Mat Sub Machines Accessed 6 | . 6 . Terminals 6 | . 6 . Fabricators . | . . . Repair Stations . | . . . Recycling Units . | . . . Scanalyzers . | . . . Garrison Access . | . . . Total Hacks 16 | . 16 . Successful 4 | . 4 . Failed 12 | . 12 . Catastrophic 2 | . 2 . Database Lockouts . | . . . Manual 16 | . 16 . Terminals 16 | . 16 . Fabricators . | . . . Repair Stations . | . . . Recycling Units . | . . . Scanalyzers . | . . . Garrison Access . | . . . Terminal Hacks 3 | . 3 . Robot Analysis 2 | . 2 . Locate Traps 1 | . 1 . Fabricator Hacks . | . . . Repair Station Hacks . | . . . Recycling Unit Hacks . | . . . Scanalyzer . | . . . Garrison Access Hacks . | . . . Unauthorized Hacks 1 | . 1 . Terminals 1 | . 1 . Operators 1 | . 1 . Fabricators . | . . . Repair Stations . | . . . Recycling Units . | . . . Scanalyzers . | . . . Garrison Access . | . . . Data Cores Recovered . | . . . Used . | . . . Hacking Detections 6 | . 6 . Full Trace Events . | . . . Feedback Events . | . . . Feedback Blocked . | . . . Robot Schematics Acquired . | . . . Robots Built . | . . . Authchips . | . . . Time . | . . . Total Robot Build Rating . | . . . Part Schematics Acquired . | . . . Parts Built . | . . . Authchips . | . . . Time . | . . . Total Part Build Rating . | . . . Parts Repaired . | . . . Time . | . . . Parts Recycled . | . . . Recycled Matter . | . . . Retrieved Matter . | . . . Retrieved Components . | . . . Parts Scanalyzed . | . . . Part Schematics Acquired . | . . . Parts Damaged . | . . . Bothacking | -11 -10 -10 ------------ Run | Yrd Mat Sub Used RIF Installer . | . . . Robots Hacked . | . . . Non-combat . | . . . Combat . | . . . Robot Hacks Applied . | . . . Relay Couplers Released . | . . . Fabnet Peak Effective % . | . . . Robots Rewired . | . . . Allies Hacked . | . . . Hacks Repelled . | . . . Allies | -11 -10 -10 -------- Run | Yrd Mat Sub Total Allies . | . . . Largest Group . | . . . Highest-Rated Group . | . . . Highest-Rated Ally . | . . . Total Orders . | . . . Ally Attacks . | . . . Total Damage . | . . . Kills . | . . . Allies Corrupted . | . . . Allies Melted . | . . . Intel | -11 -10 -10 ------- Run | Yrd Mat Sub Active Infowar (turns) 654 | 12 75 567 Optics 567 | . . 567 Seismic 87 | 12 75 . Robot Analysis Total 2 | . 2 . Derelict Logs Recovered 1 | . . 1 Drone Launches . | . . . Drone Recoveries . | . . . Exploration | -11 -10 -10 ------------- Run | Yrd Mat Sub Turns Passed 2064 | 145 858 1061 Spaces Moved 1277 | 78 639 560 Core 7 | 7 . . Treads 648 | . 88 560 Legs . | . . . Wheels 622 | 71 551 . Hover . | . . . Flight . | . . . Fastest Speed 50 | 50 80 160 Average Speed 128 | 97 105 160 Slowest Speed 160 | 100 160 160 Overloaded Moves . | . . . Propulsion Burnouts . | . . . Robots Hopped . | . . . Potential Cave-ins . | . . . Cave-ins Triggered . | . . . Exploration Rate (%) 44 | 3 92 38 Regions Visited 2 Branch Regions 1 Pre-discovered Areas 1 | . . 1 Known Exits Taken . | . . . Unknown Exits Taken 2 | 1 1 . Scrap Searched . | . . . Spaces Dug . | . . . Terrain Destroyed 13 | . . 13 Melee . | . . . Projectile . | . . . AOE 13 | . . 13 Terrain Rammed . | . . . Walls Destroyed . | . . . Machines Disabled . | . . . Actions | -11 -10 -10 --------- Run | Yrd Mat Sub Total 1511 | 114 740 657 Wait 37 | . 19 18 Move 1275 | 77 638 560 Hop . | . . . Pick Up 30 | 10 9 11 Fast Attach 12 | 6 4 2 Attach 9 | 1 2 6 Detach 1 | . . 1 Swap 5 | . 4 1 Drop 24 | 1 12 11 Fire 111 | 19 52 40 Melee . | . . . Ram . | . . . Kick . | . . . Crush . | . . . Escape Stasis . | . . . Rewire . | . . . Trap 3 | . . 3 Miscellaneous 4 | . . 4 Route ------- -11/Scrapyard -10/Materials (discovered 6 exits: [*Mat x3] / [*Min x2] / [*Sub]) -10/Subcaves (discovered 1 exit: [*Mat]) History --------- Turn | Location | Event 30 | -11/Scrapyard | Discovered new exit (range 15) 146 | -11/Scrapyard | Entered Materials 218 | -10/Materials | Discovered new exit (range 15) 305 | -10/Materials | Build established: Mutant 336 | -10/Materials | Discovered new exit (range 11) 389 | -10/Materials | Discovered new exit (range 14) 497 | -10/Materials | Discovered new exit (range 12) 723 | -10/Materials | Discovered new exit (range 3) 995 | -10/Materials | Discovered new exit (range 6) 1004 | -10/Materials | Entered Subcaves 1364 | -10/Subcaves | Learned location of Mines (-9) 1597 | -10/Subcaves | Discovered new exit (range 9) 1599 | -10/Subcaves | Shifting Twisted Machinery released Piercing Trap 1602 | -10/Subcaves | Shifting Twisted Machinery released Shrapnel Trap 1703 | -10/Subcaves | A swath of the cavern ceiling suddenly collapsed 1857 | -10/Subcaves | Core integrity fell below 50% 1900 | -10/Subcaves | Core integrity fell below 20% 2065 | -10/Subcaves | Destroyed by Autobeam Turret with Autobeam Last Messages --------------- 01945_ Scrap Shield Fragment affixed to Scrap Shield (+50). 01950_ Scrap Shield Fragment affixed to Scrap Shield (+40). 01957_ Dropped Sub. Optics. 01958_ Acquired Scrap Shield Fragment. 01959_ Dropped Sub. Monowheel. 01962_ Acquired Sub. Monowheel. 01971_ Installed Piercing Trap. 02015_ G-47 Trooper suffers critical hit (Destroy). 02015_ Destroyed Aluminum Leg. 02017_ G-47 Trooper destroyed. 02022_ Lgt. Nuclear Core fries itself beyond repair. 02023_ Particle Gun fries itself beyond repair. 02029_ G-34 Mercenary destroyed. 02035_ Acquired 49 matter. 02036_ Ion Engine fries itself beyond repair. 02036_ Acquired 55 matter. Map ----- +----------------------------------------------------+ | ??????????????????????????????????????????# ^ | | ??????????????????????????????????????????## | | ???????????????????????????????????????????###"""" | | ?????????????????????????????????????????????#"""" | | ?????????????????????????????????????????????## # | | ??????????????????????????????????????????????## # | | ???????????????????????????????????????????????### | | ??????????????????????????????????????????######?? | | ??????????????????????????????????????????# #?# | | ??????????????????????????????????????????# ### | | ???????????????????????? " ????????????????# | | ???????????????????????? t ????????????????## "" | | ???????????????????????? ??????###??####### """ | | ???????????????????????? ????### #### # " | | ???????????????????????? ???## """" "" # | | ??????? #?????????????? #???# """ " # | | ??????? ?????????????? ##??# " " """# | | ??????# ?????????????? #??## ## #####"""" | | ?????## ??????????????# #???# ## ###" """" | | ????## ??????##?????## #??## ## ### " "" | | ????# ?????## ###??# #??# ##### "" "" | | ????# ?????# ##?# #### ### "" " " | | ????# ?????# #?# ### ### ## ## | | ????? ????## #?# # ###?# #?####? | | ?????# ???## ### ;# # #?## #?????? | | ?????# ???# @# # # ### #?????? | | ?????# #???# ##;# # # # # """"#????? | | ?????# ####### #### # # ##""" #????? | | ???### ## #### #?###### # # # # ##????? | | ???# #???# # ######### #?????? | | ???## = ##???##### #?????###?????? | | ????# # # ! !=# ##?# # ##?????????????? | | ????## ##### = ### # #???????????### | | ?????## ##???## #### ## ### ##### | | ??????### ##?????#! #^ ! #?## | | ????????#####??????##!|#### ##?# ######### # | | ????????????????????####??####??###??????????????? | | ?????????????????????????????????????????????????? | | ?????????????????????????????????????????????????? | | ?????????????????????????????????????????????????? | | ?????????????????????????????????????????????????? | | ?????????????????????????????????????????????????? | | ?????????????????????????????????????????????????? | | ?????????????????????????????????????????????????? | | ?????????????????????????????????????????????????? | | ?????????????????????????????????????????????????? | | ?????????????????????????????????????????????????? | | ?????????????????????????????????????????????????? | | ?????????????????????????????????????????????????? | | ?????????????????????????????????????????????????? | +----------------------------------------------------+ Best States ------------- Heat Dissipation 35 Energy Generation 10 Energy Capacity 250 Matter Stores 300 Matter Capacity 300 Sight Range 21 Terrain Scan Density 10 Armor Coverage 800 Evasion (%) 44 Recoil Reduction 2 Item Schematics ----------------- None Robot Schematics ------------------ None Fabricated ------------ Nothing Repaired ---------- Nothing Alien Tech Used ----------------- None Achievements -------------- None Challenges ------------ None Game ------ Seed IntegratedTrackerJammer Manual? 0 Play Time 00:14:33 Cumulative 225.6 hours Start 2025.06.20 @ 03:04:03 End 2025.06.20 @ 03:19:45 Sessions 3 Manual Loads 0 Difficulty Rogue Special Mode None Game No. 215 Rogue 215 Adventurer 0 Explorer 0 Win Type - Total 1 Types 1/0/0/0/0/0/0/0/0/0 Lore% 55 Gallery% 59 Achievement% 47 Wizard Run 0 Options --------- Layout 2 ASCII 1 Keyboard 1 Movement Numpad Keybinds 0 Fullscreen 2 Font 32/TamsynBold Map View 50x44 Zoom Use 0% Tactical HUD 1 Map Filters NONE Filters NONE Steam 1 RUN: e9d8fe2a-df5f-45ed-a496-b94f18bec142